bitfinex/quotes_ETHUSD_20240718
["timestamp","ask_amount","ask_price","bid_price","bid_amount"]
[1721317055376,2.93619,3405.8,3404.3,8.29857]
[1721317055377,2.93617,3405.8,3404.5,2.93721]
[1721317055588,0.26565,3406.1,3404.9,2.93694]
[1721317055589,2.93602,3406.0,3404.9,2.93694]
[1721317055789,2.93602,3406.0,3404.3,2.3947]
[1721317055790,3.20158,3406.1,3405.1,2.93671]
[1721317055951,2.9354,3406.7,3404.4,2.93736]
[1721317056156,2.93544,3406.7,3405.8,2.93608]
[1721317056353,5.25101,3406.8,3406.0,2.93593]
[1721317056665,2.93557,3406.5,3405.5,2.93639]
[1721317056978,2.93557,3406.5,3405.7,2.93619]
[1721317057141,2.93599,3406.0,3405.3,2.93653]
[1721317057781,2.93582,3406.2,3405.3,2.93653]
[1721317057952,2.93594,3406.1,3405.3,2.93653]
[1721317058452,2.93576,3406.3,3405.3,2.93653]
[1721317058657,2.93576,3406.3,3405.6,2.93633]
[1721317058987,0.587104,3406.4,3405.7,2.93625]
[1721317059653,2.93565,3406.4,3405.7,2.93625]
[1721317059856,2.93581,3406.3,3405.5,2.93639]
[1721317060164,7.28,3407.0,3405.1,2.93674]
[1721317060165,2.93542,3406.7,3405.1,2.93674]
[1721317060384,7.28,3407.0,3404.9,2.3933]
[1721317060385,2.93606,3406.0,3405.2,2.93668]
[1721317060838,2.93606,3406.0,3405.3,2.93658]
[1721317061035,2.93606,3406.0,3405.2,2.93668]
[1721317061282,0.587191,3406.0,3405.3,2.93659]
[1721317061452,2.93566,3406.4,3405.5,2.93641]
[1721317061890,2.93556,3406.5,3405.6,2.93634]
[1721317062065,2.93576,3406.3,3405.4,2.93649]
[1721317062238,2.93587,3406.2,3405.4,2.93649]
[1721317062446,2.93587,3406.2,3405.2,2.93665]
[1721317062447,2.4494,3406.2,3405.2,2.93665]
[1721317062771,2.93608,3405.9,3405.2,2.93665]
[1721317063073,2.93608,3405.9,3404.4,5.336]
[1721317063074,2.93611,3405.9,3404.4,5.336]
[1721317063273,2.93626,3405.7,3404.8,2.93697]
[1721317063439,2.93639,3405.6,3404.8,2.93697]
[1721317063639,2.93657,3405.4,3404.6,2.93716]
[1721317063837,2.93657,3405.4,3404.4,2.93737]
[1721317063838,3.230227,3405.4,3404.4,2.93737]
[1721317064070,2.93669,3405.2,3404.4,2.93737]
[1721317064276,3.230227,3405.4,3404.6,2.93715]
[1721317064494,2.93662,3405.3,3404.6,2.93715]
[1721317064783,2.936,3406.0,3404.6,2.93715]
[1721317064784,2.93648,3405.5,3404.7,2.93708]
[1721317064986,3.523748,3405.5,3404.8,2.93702]
[1721317065140,2.93652,3405.4,3404.6,2.93715]
[1721317065371,0.587268,3405.5,3404.6,2.93715]
[1721317065372,0.587268,3405.5,3404.8,2.93697]
[1721317065575,3.24494,3406.1,3404.9,0.04179385]
[1721317066075,2.93599,3406.0,3405.1,2.9367]
[1721317066612,2.93599,3406.0,3404.0,3.0]
[1721317066613,0.24494,3406.1,3405.4,2.93644]
[1721317066787,0.24494,3406.1,3405.5,2.93637]
[1721317066987,2.93579,3406.3,3405.6,0.04147216]
[1721317067170,2.93588,3406.2,3405.6,0.04147216]
[1721317067375,2.93588,3406.2,3405.4,2.93649]
[1721317067578,2.93588,3406.2,3405.5,0.04152296]
[1721317067800,2.93562,3406.5,3405.7,2.93623]
[1721317068005,2.93562,3406.5,3405.5,2.97792296]
[1721317068006,3.749105,3406.5,3405.8,0.04137056]
[1721317068276,2.93608,3405.9,3405.8,0.04137056]
[1721317068507,2.93656,3405.4,3404.5,2.93726]
[1721317068904,2.93656,3405.4,3404.6,0.04198033]
[1721317069073,2.93677,3405.1,3404.3,2.9374]
[1721317069277,2.93666,3405.3,3404.4,2.9373]
[1721317069477,2.93672,3405.2,3404.4,2.979382]
[1721317069698,0.587321,3405.3,3404.4,0.042082]
[1721317069900,2.93655,3405.4,3404.5,2.93722]
[1721317070106,3.0,3406.2,3404.4,0.042082]
[1721317070107,2.93619,3405.8,3405.0,2.93685]
[1721317070285,2.93613,3405.9,3404.0,2.93768]
[1721317070286,2.93614,3405.9,3404.8,2.93699]
[1721317070487,2.93614,3405.9,3404.6,0.04198033]
[1721317070488,0.293614,3405.8,3404.6,0.04198033]
[1721317070725,5.4344,3406.2,3405.3,2.93658]
[1721317070891,5.4344,3406.2,3404.1,3.0]
[1721317070892,2.93622,3405.8,3405.0,2.93683]
[1721317071092,2.93642,3405.5,3405.4,0.04162818]
[1721317071412,2.93594,3406.1,3405.0,2.93677]
[1721317071642,5.93576,3406.3,3405.1,0.04178061]
[1721317071822,8.093485,3406.5,3405.1,0.04178061]
[1721317071823,2.93613,3405.9,3405.1,0.04178061]
[1721317072127,2.93613,3405.9,3405.0,2.93679]
[1721317072128,2.93628,3405.7,3405.0,2.93679]
[1721317072273,2.93628,3405.7,3405.2,0.0417298]
[1721317072472,2.93628,3405.7,3405.1,0.04178061]
[1721317072716,2.93634,3405.6,3405.3,0.04167899]
[1721317072947,2.93634,3405.6,3405.4,0.04162818]
[1721317073102,2.93611,3405.9,3405.2,2.93667]
[1721317073298,2.93594,3406.1,3405.3,0.04167899]
[1721317073498,0.293594,3406.0,3405.3,0.04167899]
[1721317073809,3.229614,3406.0,3405.3,2.97825899]
[1721317074006,0.293594,3406.0,3405.3,0.04167899]
[1721317074227,2.93607,3406.0,3405.3,0.04167899]
[1721317074421,0.813485,3406.5,3405.3,0.04167899]
[1721317074743,0.813485,3406.5,3404.8,2.93699]
[1721317074744,3.813485,3406.5,3405.4,0.04158465]
[1721317074898,3.813485,3406.5,3405.4,2.9365]
[1721317074899,2.93588,3406.2,3405.4,2.9365]
[1721317075106,2.93588,3406.2,3405.5,0.04153384]
[1721317075307,3.6043815,3406.2,3405.5,0.04153384]
[1721317075824,2.93565,3406.4,3405.5,0.04153384]
[1721317076036,0.813485,3406.5,3405.5,0.04153384]
[1721317076212,2.936,3406.0,3405.5,0.04153384]
[1721317076533,2.93573,3406.3,3405.6,2.97777304]
[1721317076696,2.93583,3406.2,3405.6,0.04148304]
[1721317076894,2.93583,3406.2,3405.5,2.93641]
[1721317077113,2.93583,3406.2,3405.6,0.04148304]
[1721317077309,2.93573,3406.3,3405.6,0.04148304]
[1721317077606,2.93565,3406.4,3405.6,0.04148304]
[1721317077804,3.522765,3406.4,3405.6,2.93629]
[1721317078039,3.522765,3406.4,3405.7,0.04136831]
[1721317078424,2.93582,3406.2,3405.7,0.04136831]
[1721317078747,2.93582,3406.2,3405.5,2.93642]
[1721317078905,2.93582,3406.2,3405.6,0.04141911]
[1721317079450,2.93578,3406.3,3405.4,5.8729]
[1721317079601,3.5816255,3406.3,3405.7,0.04136831]
[1721317079797,2.93612,3405.9,3404.8,2.937]
[1721317080003,2.93631,3405.7,3404.9,2.97871479]
[1721317080307,2.93631,3405.7,3405.0,2.93684]
[1721317080536,2.93611,3405.9,3405.1,2.93676]
[1721317080745,0.293611,3405.9,3405.1,0.04167315]
[1721317081043,2.93691,3405.0,3404.2,2.93748]
[1721317081209,2.93691,3405.0,3404.3,2.93745]
[1721317081407,2.93668,3405.2,3404.4,2.93736]
[1721317081739,2.93668,3405.2,3404.2,2.93748]
[1721317081740,2.93668,3405.2,3404.5,2.93728]
[1721317081936,2.93677,3405.1,3404.3,2.93746]
[1721317082137,2.93687,3405.0,3404.3,2.93746]
[1721317082303,2.93694,3404.9,3404.3,2.93746]
[1721317082503,2.93672,3405.2,3404.3,2.93746]
[1721317082704,2.93687,3405.0,3404.3,2.93746]
[1721317082908,3.230392,3405.2,3404.4,2.93736]
[1721317083107,0.5976234,3405.7,3404.0,2.4348]
[1721317083307,0.5976234,3405.6,3405.1,2.93675]
[1721317083517,0.5976234,3405.9,3405.1,2.93675]
[1721317083742,2.93608,3405.9,3405.1,2.93673]
[1721317083942,2.93608,3405.9,3405.2,2.93665]
[1721317084174,2.93594,3406.1,3405.2,2.93665]
[1721317084347,0.5976234,3406.2,3405.5,2.93642]
[1721317084547,0.5976234,3406.3,3405.2,0.538695]
[1721317084842,0.5976234,3406.3,3405.0,2.4503]
[1721317084843,0.5976234,3406.3,3405.7,2.9362]
[1721317085042,0.5976234,3406.5,3405.7,2.9362]
[1721317085411,0.5976234,3406.5,3405.3,5.87308]
[1721317085412,2.93583,3406.2,3405.3,5.87308]
[1721317085605,2.93583,3406.2,3405.3,2.93652]
[1721317085808,2.93583,3406.2,3405.5,2.93642]
[1721317086231,3.5334534,3406.2,3405.5,2.93642]
[1721317086551,0.5976234,3406.3,3405.7,2.93618]
[1721317086726,0.89619911,3406.4,3405.7,2.93618]
[1721317086727,1.49382251,3406.4,3405.7,2.93617]
[1721317086927,1.49382251,3406.4,3405.5,0.587294]
[1721317086928,0.5976234,3406.4,3405.8,2.9361]
[1721317087247,0.5976234,3406.4,3405.8,2.93612]
[1721317087547,0.5976234,3406.4,3405.9,2.936]
[1721317087932,0.5976234,3406.3,3405.9,2.936]
[1721317088257,0.5976234,3406.3,3405.3,2.93655]
[1721317088258,0.60439815,3407.4,3406.2,2.93581]
[1721317088562,0.89619911,3407.5,3407.0,2.93512]
[1721317088563,0.60439815,3407.5,3407.0,2.93512]
[1721317088749,0.89619911,3407.7,3407.0,2.93512]
[1721317088750,0.60439815,3407.7,3407.1,2.93504]
[1721317088924,0.60439815,3407.9,3407.1,2.93504]
[1721317089117,0.60439815,3407.9,3407.4,2.93476]
[1721317089322,0.60439815,3408.0,3407.4,2.93477]
[1721317089556,0.60439815,3408.2,3407.4,2.93477]
[1721317089731,3.53849815,3408.2,3407.4,2.93477]
[1721317089936,0.60439815,3408.1,3407.4,2.93477]
[1721317090349,0.60439815,3408.1,3407.5,2.93468]
[1721317090726,3.83026911,3408.3,3407.5,2.93468]
[1721317090727,3.53846815,3408.3,3407.5,2.93468]
[1721317090926,2.93411,3408.2,3407.4,2.93478]
[1721317091135,3.53850815,3408.2,3407.4,2.93478]
[1721317091347,0.60439815,3408.3,3407.5,2.93469]
[1721317091684,0.60439815,3408.4,3407.5,2.93469]
[1721317091857,2.93407,3408.3,3407.4,0.6695522]
[1721317092160,2.9342,3408.1,3407.1,0.825812]
[1721317092361,2.9342,3408.1,3407.1,3.760842]
[1721317092563,0.60439815,3408.2,3407.4,2.93471]
[1721317092763,0.60439815,3408.4,3407.4,2.93471]
[1721317093060,2.93403,3408.3,3407.4,2.93471]
[1721317093223,3.53842815,3408.3,3407.4,2.93471]
[1721317093422,3.53842815,3408.3,3407.3,2.93486]
[1721317093627,3.53842815,3408.3,3407.4,2.97365502]
[1721317093628,0.44346273,3408.2,3407.4,2.97365502]
[1721317093827,3.37756273,3408.2,3407.4,0.03889502]
[1721317094029,2.93418,3408.1,3407.4,0.03889502]
[1721317095231,3.37756273,3408.2,3407.3,2.93481]
[1721317095450,3.37756273,3408.2,3407.4,2.93477]
[1721317095653,2.9341,3408.2,3407.4,2.97366502]
[1721317095855,0.60439815,3408.6,3407.8,2.93438]
[1721317096031,2.2954,3408.7,3407.8,2.93438]
[1721317096237,2.89979815,3408.7,3407.9,0.03864131]
[1721317096437,2.93376,3408.6,3407.9,0.03864131]
[1721317096883,2.93427,3408.0,3407.9,0.03864131]
[1721317097085,0.60439815,3408.6,3406.7,2.93533]
[1721317097086,0.60439815,3408.3,3406.7,2.93533]
[1721317097290,2.93478,3407.4,3406.6,2.93544]
[1721317097440,2.93505,3407.1,3406.8,0.03919956]
[1721317097638,2.93518,3407.0,3406.7,0.03925033]
[1721317097883,2.93518,3407.0,3406.0,2.883221]
[1721317097884,5.87039,3407.0,3406.9,0.0391488]
[1721317098146,2.93531,3406.8,3406.0,2.93593]
[1721317098382,2.93518,3407.0,3406.2,2.93576]
[1721317098692,2.93497,3407.2,3406.4,2.93558]
[1721317098839,3.53919815,3407.4,3406.3,0.03945343]
[1721317098840,2.93504,3407.1,3406.3,0.03945343]
[1721317099046,3.53922815,3407.4,3406.5,0.03935187]
[1721317099240,3.53922815,3407.4,3406.4,0.03940265]
[1721317099241,0.60439815,3407.2,3406.4,0.03940265]
[1721317099454,2.93532,3406.8,3406.6,0.0393011]
[1721317099693,2.93514,3407.0,3405.9,2.93602]
[1721317099694,2.93539,3406.7,3405.9,2.93602]
[1721317100044,2.93539,3406.7,3406.0,2.93597]
[1721317100383,2.93531,3406.8,3406.0,2.93597]
[1721317100685,2.93522,3406.9,3406.1,2.9359]
[1721317101347,2.9354,3406.7,3406.0,0.587199]
[1721317101549,2.9354,3406.7,3406.0,2.93599]
[1721317102147,2.93531,3406.8,3406.0,2.93599]
[1721317102347,2.93522,3406.9,3406.1,2.9359]
[1721317102575,3.53928815,3407.3,3406.2,2.93574]
[1721317102884,3.53928815,3407.3,3405.6,2.93629]
[1721317102885,3.0,3407.2,3406.5,2.93548]
[1721317103325,1.38192881,3407.3,3406.5,2.93548]
[1721317103533,5.93487,3407.4,3406.6,2.93546]
[1721317103819,5.93487,3407.4,3406.6,2.9354]
[1721317104019,5.93487,3407.4,3406.4,2.93564]
[1721317104020,5.93482,3407.4,3406.4,2.93558]
[1721317104242,5.93482,3407.4,3405.8,2.93615]
[1721317104243,2.93527,3406.9,3406.1,2.9359]
[1721317104382,3.228797,3406.9,3406.0,2.93599]
[1721317104581,3.228797,3406.9,3405.8,5.27043]
[1721317104582,3.228757,3406.9,3405.9,2.93605]
[1721317104785,3.228767,3406.9,3405.9,2.93605]
[1721317104993,3.228767,3406.9,3406.1,2.9359]
[1721317105322,2.93508,3407.1,3406.2,2.9358]
[1721317105508,2.93491,3407.3,3406.4,2.93559]
[1721317105687,2.93497,3407.2,3406.4,2.93559]
[1721317105886,2.93497,3407.2,3406.5,2.93553]
[1721317106083,3.0,3407.4,3406.5,2.93553]
[1721317106084,5.93484,3407.4,3406.6,2.93547]
[1721317106283,3.0,3407.4,3406.8,2.93528]
[1721317106579,3.53908815,3407.6,3406.9,0.03904438]
[1721317106783,3.92224873,3407.6,3406.6,2.93547]
[1721317106988,2.93469,3407.6,3406.8,2.93524]
[1721317107188,0.89619911,3408.1,3405.8,8.2704]
[1721317107189,2.9343,3408.0,3407.3,2.93485]
[1721317107422,2.93412,3408.2,3407.3,2.93485]
[1721317108025,5.86828,3408.2,3407.3,2.93485]
[1721317108189,0.91105176,3408.5,3407.3,2.93485]
[1721317108190,2.93394,3408.4,3407.3,2.93485]
[1721317110905,2.93415,3408.2,3407.3,2.93481]
[1721317111236,2.93415,3408.2,3407.5,2.93469]
[1721317111237,2.93411,3408.2,3407.5,2.93469]
[1721317111396,2.93411,3408.2,3407.4,0.03879061]
[1721317111397,2.93411,3408.2,3407.6,0.03868912]
[1721317111598,0.60439815,3408.7,3407.7,2.93451]
[1721317111599,3.0,3408.6,3407.7,2.93451]
[1721317111856,2.93384,3408.5,3407.8,0.03858764]
[1721317112045,5.93394,3408.4,3407.8,0.03858764]
[1721317112247,5.93394,3408.4,3407.3,2.93483]
[1721317112248,2.93414,3408.2,3407.3,2.93483]
[1721317112760,2.93414,3408.2,3407.4,0.03879061]
[1721317113062,2.93414,3408.2,3407.3,2.93483]
[1721317113556,2.93414,3408.2,3407.5,2.93469]
[1721317113881,2.93394,3408.4,3407.6,0.03868912]
[1721317114023,3.0,3408.3,3407.6,0.03868912]
[1721317114370,3.0,3408.3,3406.7,2.4731]
[1721317114371,2.93444,3407.9,3407.2,2.93495]
[1721317114575,2.93444,3407.9,3407.3,0.03884136]
[1721317114776,2.93421,3408.1,3407.3,0.03884136]
[1721317114777,2.93444,3407.8,3407.3,0.03884136]
[1721317115076,2.93444,3407.8,3407.0,2.93508]
[1721317115253,2.93444,3407.8,3407.4,0.03866057]
[1721317115448,2.93444,3407.8,3406.9,2.9352]
[1721317115449,2.93453,3407.7,3407.0,2.93511]
[1721317115652,6.6889198,3408.3,3407.0,2.93511]
[1721317115653,2.93445,3407.8,3407.5,0.03860983]
[1721317115841,2.93453,3407.7,3407.0,0.834341]
[1721317116043,2.93463,3407.6,3407.1,0.03881283]
[1721317116486,2.3341,3408.2,3407.1,0.03881283]
[1721317116487,3.0,3407.5,3407.1,0.03881283]
[1721317116642,2.93518,3407.0,3406.2,2.425]
[1721317116960,2.93518,3407.0,3406.3,0.57530098]
[1721317117159,2.93518,3407.0,3406.3,3.51102098]
[1721317117365,3.0,3407.5,3406.3,3.51102098]
[1721317117552,2.93484,3407.4,3406.6,2.93543]
[1721317117737,2.93484,3407.4,3406.7,0.03901588]
[1721317117938,2.93468,3407.6,3406.7,2.97438588]
[1721317118138,3.0,3407.7,3406.8,2.93524]
[1721317118360,2.93426,3408.1,3407.2,2.9349]
[1721317118560,2.93427,3408.0,3407.3,0.03871132]
[1721317118781,2.93427,3408.0,3407.2,2.9349]
[1721317118949,2.93427,3408.0,3407.3,0.03871132]
[1721317119137,2.93427,3408.0,3407.2,2.9349]
[1721317119350,0.60439815,3408.4,3407.2,0.586998]
[1721317119541,0.60439815,3410.1,3408.4,2.93392]
[1721317119746,0.60439815,3410.6,3409.9,2.9326]
[1721317119939,0.60439815,3410.6,3408.9,3.378]
[1721317119940,1.79973614,3410.7,3408.9,3.378]
[1721317120176,2.93203,3410.6,3408.5,5.4515]
[1721317120379,2.93203,3410.6,3409.3,2.93315]
[1721317120535,2.87349815,3410.8,3409.1,2.9333]
[1721317120736,2.87349815,3410.8,3408.5,5.38525]
[1721317120737,3.378,3410.4,3409.4,0.03764621]
[1721317120937,3.378,3410.4,3409.5,0.03759552]
[1721317121244,3.378,3410.4,3408.0,2.93421]
[1721317121245,2.93298,3409.5,3408.0,2.93421]
[1721317121439,2.93324,3409.2,3408.1,0.03830541]
[1721317121643,5.97546815,3409.8,3408.1,2.97248541]
[1721317121921,5.97546815,3409.8,3408.6,2.93371]
[1721317121922,2.4383,3409.8,3408.6,2.93371]
[1721317122185,2.9329,3409.6,3408.7,0.0380011]
[1721317122479,2.9329,3409.6,3408.1,2.93412]
[1721317122480,3.0,3409.5,3408.3,2.93398]
[1721317122678,3.0,3409.5,3408.8,0.03795039]
[1721317122679,5.93298,3409.5,3408.8,0.03795039]
[1721317122863,2.9331,3409.4,3407.7,2.93452]
[1721317123068,2.93332,3409.1,3408.9,0.03789969]
[1721317123377,6.48315,3409.3,3408.2,2.93409]
[1721317123378,3.0,3409.3,3408.2,2.93409]
[1721317123679,0.89619911,3409.6,3408.0,2.93427]
[1721317123680,3.0,3409.6,3408.3,2.97219396]
[1721317123892,5.93285,3409.7,3408.4,2.93392]
[1721317124181,3.0,3409.6,3408.4,2.93392]
[1721317124477,3.0,3409.5,3408.4,2.93392]
[1721317125046,5.93302,3409.5,3408.5,0.03810252]
[1721317125281,2.4383,3409.8,3407.4,5.4451]
[1721317125491,5.37104,3409.8,3408.6,2.97158884]
[1721317125696,5.37104,3409.8,3408.6,2.93369]
[1721317126005,2.93284,3409.7,3408.7,0.03784813]
[1721317126301,2.93286,3409.7,3408.3,2.93399]
[1721317126462,2.4383,3409.8,3408.3,2.93399]
[1721317126659,3.48287,3409.7,3408.4,0.03800027]
[1721317126859,0.60439815,3410.1,3408.8,2.93357]
[1721317127089,3.09299815,3410.3,3408.8,2.93357]
[1721317127291,6.53685815,3410.2,3408.8,2.93357]
[1721317127480,3.60439815,3410.2,3408.9,2.97123672]
[1721317127679,3.0,3410.2,3408.9,2.93349]
[1721317127993,2.93249,3410.1,3409.0,0.03769602]
[1721317128199,2.93249,3410.1,3408.9,2.93349]
[1721317128504,3.0,3410.0,3408.2,2.93408]
[1721317128862,3.0,3410.0,3408.9,2.93348]
[1721317129066,3.0,3410.0,3409.2,2.93319]
[1721317129439,3.0,3410.2,3409.3,0.03754393]
[1721317129577,5.93243,3410.2,3409.1,2.93325]
[1721317129759,5.93243,3410.2,3409.2,0.03759462]
[1721317130806,5.93243,3410.2,3409.2,2.97081462]
[1721317131298,0.35554741,3410.1,3409.2,2.97081462]
[1721317132799,0.35554741,3410.1,3409.3,2.93315]
[1721317133109,0.35554741,3410.1,3409.4,0.03707356]
[1721317133960,2.9328,3409.8,3409.4,0.03707356]
[1721317134164,2.9328,3409.8,3408.8,2.93352]
[1721317134406,3.55489574,3409.8,3408.9,0.03599331]
[1721317134909,3.55489574,3409.8,3408.9,2.96948331]
[1721317135117,0.62209574,3409.8,3409.0,2.93338]
[1721317135296,0.62209574,3409.8,3408.9,0.03599331]
[1721317135622,2.93282,3409.7,3409.0,0.03594261]
[1721317135761,0.35554741,3410.1,3409.0,0.03594261]
[1721317135762,0.35554741,3410.1,3409.1,2.93329]
[1721317135966,5.42094,3410.3,3409.2,0.03584121]
[1721317136166,5.42094,3410.3,3409.1,2.93329]
[1721317136398,5.42094,3410.3,3409.2,0.03584121]
[1721317136718,5.42094,3410.3,3408.5,0.05866283]
[1721317137014,2.4886,3410.3,3409.4,2.93299]
[1721317137321,2.4886,3410.3,3408.6,0.03614543]
[1721317137322,6.47451,3410.2,3409.5,0.03568914]
[1721317137607,6.47451,3410.2,3408.9,2.93347]
[1721317137608,3.54208,3410.2,3408.9,2.93347]
[1721317137813,2.93226,3410.4,3409.0,0.03594261]
[1721317137993,5.93235,3410.3,3409.3,2.93309]
[1721317138311,2.93235,3410.3,3409.4,2.96879983]
[1721317138523,3.0,3410.2,3409.4,2.96879983]
[1721317139305,2.93248,3410.1,3409.4,0.03573983]
[1721317139465,3.818963,3410.1,3409.4,0.03573983]
[1721317139799,3.818963,3410.1,3409.5,0.03568914]
[1721317140103,0.886483,3410.1,3409.3,2.93315]
[1721317140303,3.0,3410.2,3409.6,0.03563846]
[1721317140469,2.93217,3410.5,3409.6,2.93288]
[1721317140664,2.93217,3410.5,3409.7,0.03558778]
[1721317140977,2.93239,3410.2,3409.7,0.03558778]
[1721317141164,0.593239,3410.1,3409.8,0.0355371]
[1721317141477,0.593239,3410.1,3409.4,2.93306]
[1721317141678,0.593239,3410.1,3409.9,0.03548642]
[1721317141879,3.525729,3410.1,3409.2,2.93318]
[1721317142080,2.3853,3410.0,3408.3,2.93398]
[1721317142298,2.93306,3409.4,3409.3,0.03579052]
[1721317142606,2.4001,3409.7,3407.6,2.93458]
[1721317142764,2.93372,3408.7,3407.7,0.03660197]
[1721317143414,2.93375,3408.6,3407.8,2.93442]
[1721317143581,2.93375,3408.6,3407.9,0.03650049]
[1721317143920,3.0,3409.1,3407.9,0.62704554]
[1721317144123,7.28,3409.3,3408.0,2.93426]
[1721317144272,7.28,3409.7,3408.7,2.93359]
[1721317144463,3.0,3409.6,3408.7,2.93359]
[1721317144709,2.849839,3410.1,3408.8,0.0362127]
[1721317145011,2.849839,3410.1,3408.7,2.93363]
[1721317145210,2.9329,3409.6,3408.8,0.0362127]
[1721317145596,2.93278,3409.8,3408.9,2.93348]
[1721317145970,3.0,3409.7,3409.1,2.93332]
[1721317146195,3.0,3410.1,3409.5,2.93295]
[1721317146378,0.60439815,3410.5,3409.6,0.03587594]
[1721317146379,2.93223,3410.4,3409.6,0.03587594]
[1721317146584,2.93223,3410.4,3409.5,2.93295]
[1721317147311,0.60439815,3410.6,3409.5,3.226245]
[1721317147607,0.60439815,3410.6,3409.6,0.03570456]
[1721317147906,0.60439815,3410.6,3409.7,2.9328]
[1721317148116,0.60439815,3410.6,3409.6,0.03570456]
[1721317148272,0.60439815,3410.6,3409.8,0.0356032]
[1721317148470,0.60439815,3410.6,3410.1,2.93239]
[1721317148669,0.60439815,3410.6,3410.1,3.225629]
[1721317148905,0.60439815,3410.6,3410.2,0.03537894]
[1721317149271,0.60439815,3410.6,3410.3,2.93223]
[1721317149600,0.60439815,3410.6,3410.5,2.93212]
[1721317149803,0.60439815,3410.6,3410.5,2.96734695]
[1721317150003,0.60439815,3410.6,3410.5,3.55730465]
[1721317150415,0.60439815,3410.6,3410.5,6.48942465]
[1721317150901,2.92981,3413.2,3410.6,3.14844246]
[1721317151203,5.88134896,3412.8,3411.0,2.93164]
[1721317151379,2.93026,3412.7,3411.8,2.93098]
[1721317151580,2.93063,3412.3,3411.9,0.03430505]
[1721317151780,2.93063,3412.3,3411.2,2.93145]
[1721317152008,2.93063,3412.3,3409.6,2.93286]
[1721317152009,2.0,3410.8,3410.0,2.4326]
[1721317152215,2.0,3410.8,3410.4,2.93219]
[1721317152413,2.0,3410.8,3410.7,2.93194]
[1721317153589,2.0,3410.8,3410.5,2.93209]
[1721317153790,2.0,3410.8,3410.2,3.2048739]
[1721317153998,2.0,3410.8,3410.0,5.36514]
[1721317154323,2.0,3410.8,3410.2,2.93236]
[1721317154623,2.0,3410.8,3410.2,2.93231]
[1721317154819,2.0,3410.8,3410.3,2.93226]
[1721317155026,2.0,3410.8,3410.3,2.93224]
[1721317155325,2.0,3410.8,3410.4,0.03246309]
[1721317155490,2.0,3410.8,3410.4,2.96465309]
[1721317155819,2.0,3410.8,3410.6,2.93197]
[1721317156002,2.0,3410.8,3410.7,0.03235538]
[1721317156191,2.0,3410.8,3410.7,2.96429538]
[1721317156385,2.0,3410.8,3410.7,6.48586692]
[1721317156798,2.0,3410.8,3410.7,3.55392692]
[1721317157522,2.0,3410.8,3410.7,6.48586692]
[1721317157727,2.0,3410.8,3410.7,3.55392692]
[1721317157902,2.0,3410.8,3410.7,6.48586692]
[1721317158225,2.0,3410.8,3410.7,2.96429538]
[1721317159103,2.0,3410.8,3410.7,0.03235538]
[1721317159303,2.0,3410.8,3410.7,2.96429538]
[1721317159551,2.0,3410.8,3410.7,5.89623538]
[1721317160142,2.0,3410.8,3410.7,8.82817538]
[1721317160356,2.0,3410.8,3410.7,6.77905292]
[1721317162326,2.0,3410.8,3410.7,9.71099292]
[1721317162666,2.0,3410.8,3410.7,6.77905292]
[1721317162830,2.0,3410.8,3410.7,9.71099292]
[1721317163223,2.0,3410.8,3410.7,14.97513292]
[1721317163416,2.0,3410.8,3410.7,18.52513292]
[1721317163417,1.38844325,3410.8,3410.7,18.52513292]
[1721317163729,0.30131243,3410.8,3410.7,15.59319292]
[1721317163934,0.30131243,3410.8,3410.7,12.11125292]
[1721317164721,0.30131243,3410.8,3410.7,15.04319292]
[1721317164924,0.30131243,3410.8,3410.7,12.11125292]
[1721317165130,1.0,3412.1,3411.0,2.93162]
[1721317165350,1.0,3412.1,3411.2,2.93149]
[1721317165561,1.0,3412.1,3410.7,6.24737292]
[1721317165562,2.93106,3411.8,3411.1,0.03091544]
[1721317165744,2.93106,3411.8,3411.3,0.03081417]
[1721317165940,2.93099,3411.9,3411.2,0.0308648]
[1721317166156,1.0,3412.1,3411.4,0.03076354]
[1721317166157,0.393099,3411.8,3411.4,0.03076354]
[1721317166455,6.93078,3412.1,3411.0,2.93166]
[1721317166456,1.0,3412.1,3411.0,2.93166]
[1721317166752,1.0,3412.1,3411.3,2.93143]
[1721317166961,1.0,3412.1,3411.9,2.93091]
[1721317167139,1.0,3412.1,3411.4,0.05862238]
[1721317167140,1.0,3412.1,3411.4,0.03078498]
[1721317167460,1.0,3412.1,3411.4,0.2962265]
[1721317167660,1.0,3412.1,3411.5,0.03073436]
[1721317167836,1.0,3412.1,3411.7,2.93108]
[1721317168035,1.0,3412.1,3411.8,2.96155909]
[1721317168349,1.0,3412.1,3412.0,2.93083]
[1721317168671,1.0,3412.1,3412.0,6.48135577]
[1721317169452,1.0,3412.1,3412.0,9.41218577]
[1721317169676,1.0,3412.1,3412.0,6.48135577]
[1721317169830,1.0,3412.1,3412.0,3.55052577]
[1721317170026,1.0,3412.1,3412.0,8.97965577]
[1721317170379,1.0,3412.1,3412.0,11.91048577]
[1721317170578,1.0,3412.1,3412.0,15.46048577]
[1721317172744,1.0,3412.1,3412.0,12.52965577]
[1721317173264,1.0,3412.1,3412.0,9.48135577]
[1721317173469,1.0,3412.1,3412.0,0.03046786]
[1721317173644,1.0,3412.1,3411.8,2.93099]
[1721317173846,1.0,3412.1,3411.9,0.03043671]
[1721317174161,1.0,3412.1,3412.0,2.93083]
[1721317174590,1.0,3412.1,3412.0,5.8920461]
[1721317174906,1.0,3412.1,3412.0,6.77434771]
[1721317175050,1.0,3412.1,3412.0,10.25517771]
[1721317175381,1.0,3412.1,3412.0,13.25517771]
[1721317176282,1.0,3412.1,3412.0,0.91268771]
[1721317176448,1.0,3412.1,3412.0,0.0303861]
[1721317176776,1.0,3412.1,3410.6,2.4313]